[Event "Titled Tuesday Blitz February 01 B 2022"]
[White "Sanchez Gonzalez, Sergio"]
[Black "Papp, Levente"]
[WhiteFideId "2273020"]
[BlackFideId "751243"]
[WhiteElo "2288"]
[BlackElo "2308"]
[Result "0-1"]
[Round "10"]
[TimeControl "180+1"]
[Date "2022.02.01"]
[WhiteClock "0:00:40"]
[BlackClock "0:01:15"]

1. Nf3 {[%clk 0:03:00]}  d5 {[%clk 0:02:59]} 2. g3 {[%clk 0:02:59]}  Nc6 {[%clk 0:02:58]} 3. d4 {[%clk 0:02:58]}  Bf5 {[%clk 0:02:59]} 4. Bg2 {[%clk 0:02:58]}  Qd7 {[%clk 0:02:59]} 5. b3 {[%clk 0:02:55]}  Nf6 {[%clk 0:02:54]} 6. O-O {[%clk 0:02:53]}  Bh3 {[%clk 0:02:52]} 7. Ne5 {[%clk 0:02:45]}  Nxe5 {[%clk 0:02:46]} 8. dxe5 {[%clk 0:02:45]}  Bxg2 {[%clk 0:02:47]} 9. Kxg2 {[%clk 0:02:44]}  Ne4 {[%clk 0:02:46]} 10. f3 {[%clk 0:02:42]}  Nc5 {[%clk 0:02:46]} 11. Ba3 {[%clk 0:02:38]}  e6 {[%clk 0:02:42]} 12. Qd4 {[%clk 0:02:28]}  b6 {[%clk 0:02:27]} 13. Rd1 {[%clk 0:02:28]}  O-O-O {[%clk 0:02:25]} 14. Bb2 {[%clk 0:02:19]}  Be7 {[%clk 0:02:13]} 15. a4 {[%clk 0:02:17]}  f6 {[%clk 0:02:10]} 16. a5 {[%clk 0:02:15]}  fxe5 {[%clk 0:02:10]} 17. Qd2 {[%clk 0:01:41]}  Bd6 {[%clk 0:01:43]} 18. b4 {[%clk 0:01:38]}  Na4 {[%clk 0:01:42]} 19. c3 {[%clk 0:01:31]}  b5 {[%clk 0:01:34]} 20. Bc1 {[%clk 0:01:25]}  a6 {[%clk 0:01:32]} 21. Qe3 {[%clk 0:01:18]}  Kb7 {[%clk 0:01:30]} 22. Nd2 {[%clk 0:01:18]}  Qc6 {[%clk 0:01:25]} 23. Ra3 {[%clk 0:00:58]}  d4 {[%clk 0:01:19]} 24. cxd4 {[%clk 0:00:57]}  Bxb4 {[%clk 0:01:19]} 25. Rb3 {[%clk 0:00:52]}  exd4 {[%clk 0:01:19]} 26. Qd3 {[%clk 0:00:49]}  Nc5 {[%clk 0:01:18]} 27. Qb1 {[%clk 0:00:42]}  Bxd2 {[%clk 0:01:15]} 28. Bxd2 {[%clk 0:00:39]}  Nxb3 {[%clk 0:01:15]} 29. Qxb3 {[%clk 0:00:40]}  Qc4 {[%clk 0:01:15]} 30. Qb1 {[%clk 0:00:40]}  Qxe2+ {[%clk 0:01:15]} 0-1


[Site "https://www.chess.com"]

[Event "Titled Tuesday Blitz February 01 B 2022"]
[White "Svane, Rasmus"]
[Black "Dourerassou, Jonathan"]
[WhiteFideId "4657101"]
[BlackFideId "628050"]
[WhiteElo "2645"]
[BlackElo "2513"]
[Result "1-0"]
[Round "10"]
[TimeControl "180+1"]
[Date "2022.02.01"]
[WhiteClock "0:01:00"]
[BlackClock "0:00:29"]

1. Nf3 {[%clk 0:02:58]}  d5 {[%clk 0:02:59]} 2. g3 {[%clk 0:02:58]}  Nf6 {[%clk 0:02:59]} 3. Bg2 {[%clk 0:02:58]}  g6 {[%clk 0:03:00]} 4. O-O {[%clk 0:02:59]}  Bg7 {[%clk 0:03:01]} 5. c4 {[%clk 0:02:59]}  dxc4 {[%clk 0:03:00]} 6. Qa4+ {[%clk 0:02:57]}  c6 {[%clk 0:03:00]} 7. Qxc4 {[%clk 0:02:57]}  O-O {[%clk 0:03:00]} 8. d4 {[%clk 0:02:57]}  Be6 {[%clk 0:02:59]} 9. Qa4 {[%clk 0:02:54]}  Nbd7 {[%clk 0:02:58]} 10. Nc3 {[%clk 0:02:54]}  Nb6 {[%clk 0:02:57]} 11. Qc2 {[%clk 0:02:54]}  Nbd5 {[%clk 0:02:56]} 12. e4 {[%clk 0:02:53]}  Nxc3 {[%clk 0:02:56]} 13. bxc3 {[%clk 0:02:53]}  Bc4 {[%clk 0:02:56]} 14. Rd1 {[%clk 0:02:52]}  Qa5 {[%clk 0:02:55]} 15. Ne5 {[%clk 0:02:49]}  Be6 {[%clk 0:02:54]} 16. Rb1 {[%clk 0:02:39]}  c5 {[%clk 0:02:32]} 17. Rxb7 {[%clk 0:02:24]}  cxd4 {[%clk 0:02:31]} 18. cxd4 {[%clk 0:02:24]}  Rfc8 {[%clk 0:02:29]} 19. Nc6 {[%clk 0:02:17]}  Kh8 {[%clk 0:01:47]} 20. d5 {[%clk 0:02:01]}  Qa6 {[%clk 0:01:31]} 21. Qb3 {[%clk 0:01:31]}  Bg4 {[%clk 0:01:24]} 22. f3 {[%clk 0:01:30]}  Nxe4 {[%clk 0:01:12]} 23. Bf1 {[%clk 0:01:10]}  Qxb7 {[%clk 0:00:49]} 24. Qxb7 {[%clk 0:01:11]}  Bxf3 {[%clk 0:00:50]} 25. Re1 {[%clk 0:01:11]}  Bc3 {[%clk 0:00:41]} 26. Re3 {[%clk 0:01:09]}  Nc5 {[%clk 0:00:30]} 27. Qxe7 {[%clk 0:01:00]}  Bxd5 {[%clk 0:00:29]} 28. Rxc3 {[%clk 0:01:00]} 1-0


[Site "https://www.chess.com"]

[Event "Titled Tuesday Blitz February 01 B 2022"]
[White "Tregubov, Pavel V."]
[Black "Loay, Sameer"]
[WhiteFideId "4115341"]
[BlackFideId "8104239"]
[WhiteElo "2341"]
[BlackElo "2040"]
[Result "0-1"]
[Round "10"]
[TimeControl "180+1"]
[Date "2022.02.01"]
[WhiteClock "0:00:49"]
[BlackClock "0:00:36"]

1. e4 {[%clk 0:03:00]}  d6 {[%clk 0:03:00]} 2. d4 {[%clk 0:03:00]}  g6 {[%clk 0:03:00]} 3. Nc3 {[%clk 0:02:59]}  Bg7 {[%clk 0:03:01]} 4. Nf3 {[%clk 0:03:00]}  Nf6 {[%clk 0:03:01]} 5. Be2 {[%clk 0:03:00]}  O-O {[%clk 0:03:01]} 6. O-O {[%clk 0:03:00]}  c5 {[%clk 0:03:02]} 7. dxc5 {[%clk 0:02:53]}  dxc5 {[%clk 0:03:03]} 8. h3 {[%clk 0:02:46]}  Nc6 {[%clk 0:02:56]} 9. e5 {[%clk 0:02:45]}  Nd7 {[%clk 0:02:53]} 10. e6 {[%clk 0:02:44]}  fxe6 {[%clk 0:02:53]} 11. Ng5 {[%clk 0:02:37]}  Nd4 {[%clk 0:02:48]} 12. Bg4 {[%clk 0:02:22]}  Ne5 {[%clk 0:02:45]} 13. Nce4 {[%clk 0:02:19]}  h6 {[%clk 0:02:30]} 14. c3 {[%clk 0:02:19]}  Nxg4 {[%clk 0:02:05]} 15. cxd4 {[%clk 0:02:01]}  Nxf2 {[%clk 0:02:05]} 16. Rxf2 {[%clk 0:01:53]}  Rxf2 {[%clk 0:02:05]} 17. Nxf2 {[%clk 0:01:45]}  hxg5 {[%clk 0:02:02]} 18. dxc5 {[%clk 0:01:43]}  Qd5 {[%clk 0:01:53]} 19. Qc2 {[%clk 0:01:37]}  Qf5 {[%clk 0:01:47]} 20. Qc4 {[%clk 0:01:30]}  Bd7 {[%clk 0:01:19]} 21. Be3 {[%clk 0:01:21]}  Bc6 {[%clk 0:01:16]} 22. Rf1 {[%clk 0:01:16]}  Bd5 {[%clk 0:01:15]} 23. Qc1 {[%clk 0:01:10]}  Rf8 {[%clk 0:00:56]} 24. b4 {[%clk 0:01:03]}  Bxg2 {[%clk 0:00:45]} 25. Kxg2 {[%clk 0:00:49]}  Qf3+ {[%clk 0:00:46]} 26. Kg1 {[%clk 0:00:48]}  Qg3+ {[%clk 0:00:46]} 27. Kh1 {[%clk 0:00:49]}  Be5 {[%clk 0:00:36]} 0-1


[Site "https://www.chess.com"]

[Event "Titled Tuesday Blitz February 01 B 2022"]
[White "Urazayev, Arystanbek"]
[Black "Isajevsky, Anton"]
[WhiteFideId "13709810"]
[BlackFideId "4142500"]
[WhiteElo "2321"]
[BlackElo "2510"]
[Result "1-0"]
[Round "10"]
[TimeControl "180+1"]
[Date "2022.02.01"]
[WhiteClock "0:00:39"]
[BlackClock "0:00:01"]

1. e4 {[%clk 0:03:00]}  c5 {[%clk 0:02:58]} 2. Nf3 {[%clk 0:03:01]}  d6 {[%clk 0:02:58]} 3. d4 {[%clk 0:03:01]}  cxd4 {[%clk 0:02:59]} 4. Nxd4 {[%clk 0:03:02]}  Nf6 {[%clk 0:02:59]} 5. Nc3 {[%clk 0:03:03]}  a6 {[%clk 0:03:00]} 6. Rg1 {[%clk 0:03:03]}  e5 {[%clk 0:02:53]} 7. Nb3 {[%clk 0:03:03]}  h5 {[%clk 0:02:51]} 8. h3 {[%clk 0:03:03]}  Be6 {[%clk 0:02:22]} 9. g4 {[%clk 0:03:03]}  hxg4 {[%clk 0:02:22]} 10. hxg4 {[%clk 0:03:03]}  d5 {[%clk 0:02:23]} 11. exd5 {[%clk 0:03:04]}  Nxd5 {[%clk 0:02:22]} 12. Nxd5 {[%clk 0:03:05]}  Qxd5 {[%clk 0:02:18]} 13. Qxd5 {[%clk 0:03:05]}  Bxd5 {[%clk 0:02:18]} 14. Be3 {[%clk 0:03:06]}  Nc6 {[%clk 0:02:12]} 15. O-O-O {[%clk 0:03:06]}  O-O-O {[%clk 0:02:11]} 16. Bb6 {[%clk 0:03:06]}  Rd7 {[%clk 0:02:09]} 17. a3 {[%clk 0:03:06]}  Bf3 {[%clk 0:02:01]} 18. Rxd7 {[%clk 0:03:02]}  Kxd7 {[%clk 0:02:02]} 19. Bc4 {[%clk 0:03:00]}  Ke8 {[%clk 0:01:55]} 20. Nd2 {[%clk 0:03:00]}  Bh1 {[%clk 0:01:48]} 21. f3 {[%clk 0:02:50]}  Be7 {[%clk 0:01:28]} 22. Be3 {[%clk 0:02:36]}  Nd4 {[%clk 0:01:01]} 23. Bxd4 {[%clk 0:02:36]}  exd4 {[%clk 0:01:01]} 24. Bd5 {[%clk 0:02:36]}  Bg5 {[%clk 0:00:51]} 25. Kd1 {[%clk 0:02:13]}  Rh2 {[%clk 0:00:45]} 26. Nf1 {[%clk 0:02:02]}  Rh3 {[%clk 0:00:31]} 27. Ng3 {[%clk 0:01:44]}  Be3 {[%clk 0:00:25]} 28. Rxh1 {[%clk 0:01:44]}  Rxg3 {[%clk 0:00:25]} 29. Bxb7 {[%clk 0:01:44]}  Rg2 {[%clk 0:00:21]} 30. Be4 {[%clk 0:01:34]}  Ke7 {[%clk 0:00:12]} 31. Rh8 {[%clk 0:01:31]}  Kd6 {[%clk 0:00:11]} 32. Re8 {[%clk 0:01:14]}  g6 {[%clk 0:00:09]} 33. b4 {[%clk 0:01:11]}  Rd2+ {[%clk 0:00:05]} 34. Ke1 {[%clk 0:01:11]}  Rg2 {[%clk 0:00:05]} 35. a4 {[%clk 0:00:53]}  Rh2 {[%clk 0:00:03]} 36. b5 {[%clk 0:00:47]}  axb5 {[%clk 0:00:03]} 37. axb5 {[%clk 0:00:48]}  Kc5 {[%clk 0:00:04]} 38. Bd3 {[%clk 0:00:44]}  f5 {[%clk 0:00:03]} 39. gxf5 {[%clk 0:00:44]}  gxf5 {[%clk 0:00:04]} 40. Rc8+ {[%clk 0:00:45]}  Kb6 {[%clk 0:00:02]} 41. Rc6+ {[%clk 0:00:45]}  Kb7 {[%clk 0:00:02]} 42. Bxf5 {[%clk 0:00:45]}  Rh5 {[%clk 0:00:01]} 43. Bd3 {[%clk 0:00:45]}  Rh2 {[%clk 0:00:01]} 44. Rf6 {[%clk 0:00:40]}  Rg2 {[%clk 0:00:01]} 45. Be4+ {[%clk 0:00:39]} 1-0


[Site "https://www.chess.com"]

[Event "Titled Tuesday Blitz February 01 B 2022"]
[White "Brodowski, Piotr"]
[Black "Glek, Igor"]
[WhiteFideId "1124480"]
[BlackFideId "4100484"]
[WhiteElo "2422"]
[BlackElo "2215"]
[Result "1-0"]
[Round "11"]
[TimeControl "180+1"]
[Date "2022.02.01"]
[WhiteClock "0:00:07"]
[BlackClock "0:00:01"]

1. e4 {[%clk 0:02:36]}  e6 {[%clk 0:02:58]} 2. d4 {[%clk 0:02:34]}  d5 {[%clk 0:02:58]} 3. Nd2 {[%clk 0:02:35]}  a6 {[%clk 0:02:57]} 4. f4 {[%clk 0:02:31]}  c5 {[%clk 0:02:51]} 5. Ngf3 {[%clk 0:02:28]}  Nc6 {[%clk 0:02:50]} 6. exd5 {[%clk 0:02:28]}  exd5 {[%clk 0:02:50]} 7. Nb3 {[%clk 0:02:28]}  cxd4 {[%clk 0:02:46]} 8. Nbxd4 {[%clk 0:02:28]}  Nf6 {[%clk 0:02:45]} 9. Be2 {[%clk 0:02:29]}  Bc5 {[%clk 0:02:44]} 10. c3 {[%clk 0:02:29]}  O-O {[%clk 0:02:43]} 11. O-O {[%clk 0:02:29]}  Re8 {[%clk 0:02:43]} 12. Kh1 {[%clk 0:02:28]}  Qb6 {[%clk 0:02:27]} 13. Nxc6 {[%clk 0:02:26]}  bxc6 {[%clk 0:02:26]} 14. Ne5 {[%clk 0:02:25]}  Ne4 {[%clk 0:02:20]} 15. Bd3 {[%clk 0:02:25]}  f6 {[%clk 0:02:00]} 16. Bxe4 {[%clk 0:02:15]}  dxe4 {[%clk 0:02:00]} 17. Qh5 {[%clk 0:02:11]}  Be6 {[%clk 0:01:42]} 18. f5 {[%clk 0:02:12]}  Bd5 {[%clk 0:01:07]} 19. Ng4 {[%clk 0:01:24]}  e3 {[%clk 0:01:01]} 20. b4 {[%clk 0:01:19]}  e2 {[%clk 0:00:56]} 21. Re1 {[%clk 0:01:19]}  Bf2 {[%clk 0:00:46]} 22. Bh6 {[%clk 0:01:17]}  Qa7 {[%clk 0:00:19]} 23. Rxe2 {[%clk 0:00:30]}  Rxe2 {[%clk 0:00:18]} 24. Nxf6+ {[%clk 0:00:30]}  gxf6 {[%clk 0:00:17]} 25. Qxe2 {[%clk 0:00:31]}  Kh8 {[%clk 0:00:10]} 26. Rf1 {[%clk 0:00:22]}  Bh4 {[%clk 0:00:08]} 27. Rf4 {[%clk 0:00:13]}  Rg8 {[%clk 0:00:06]} 28. Rg4 {[%clk 0:00:13]}  Bg5 {[%clk 0:00:04]} 29. Rxg5 {[%clk 0:00:10]}  Rxg5 {[%clk 0:00:01]} 30. Bxg5 {[%clk 0:00:07]}  fxg5 {[%clk 0:00:01]} 31. f6 {[%clk 0:00:07]}  Qf7 {[%clk 0:00:01]} 32. Qe5 {[%clk 0:00:07]} 1-0


[Site "https://www.chess.com"]

[Event "Titled Tuesday Blitz February 01 B 2022"]
[White "De La Colina, Nicolas"]
[Black "Marcziter, Dmitrii"]
[WhiteFideId "30946921"]
[BlackFideId "13900765"]
[WhiteElo "2046"]
[BlackElo "2155"]
[Result "1-0"]
[Round "11"]
[TimeControl "180+1"]
[Date "2022.02.01"]
[WhiteClock "0:00:19"]
[BlackClock "0:00:41"]

1. e4 {[%clk 0:03:00]}  c5 {[%clk 0:02:59]} 2. Nf3 {[%clk 0:03:00]}  a6 {[%clk 0:02:58]} 3. c3 {[%clk 0:02:57]}  d5 {[%clk 0:02:58]} 4. exd5 {[%clk 0:02:58]}  Qxd5 {[%clk 0:02:58]} 5. d4 {[%clk 0:02:59]}  Nf6 {[%clk 0:02:58]} 6. Be3 {[%clk 0:02:52]}  cxd4 {[%clk 0:02:57]} 7. cxd4 {[%clk 0:02:53]}  Bg4 {[%clk 0:02:55]} 8. Nc3 {[%clk 0:02:51]}  Qd6 {[%clk 0:02:55]} 9. Qa4+ {[%clk 0:02:29]}  Bd7 {[%clk 0:02:45]} 10. Qb3 {[%clk 0:02:27]}  b5 {[%clk 0:02:34]} 11. Ne5 {[%clk 0:02:15]}  Be6 {[%clk 0:02:31]} 12. Qc2 {[%clk 0:02:11]}  Nbd7 {[%clk 0:02:20]} 13. Be2 {[%clk 0:01:45]}  g6 {[%clk 0:02:13]} 14. Ne4 {[%clk 0:01:13]}  Nxe4 {[%clk 0:02:10]} 15. Qxe4 {[%clk 0:01:14]}  Bd5 {[%clk 0:02:01]} 16. Qf4 {[%clk 0:00:49]}  Nf6 {[%clk 0:01:58]} 17. O-O {[%clk 0:00:45]}  Bg7 {[%clk 0:01:56]} 18. Bf3 {[%clk 0:00:38]}  O-O {[%clk 0:01:51]} 19. Rac1 {[%clk 0:00:37]}  Rac8 {[%clk 0:01:49]} 20. a3 {[%clk 0:00:35]}  Bxf3 {[%clk 0:01:45]} 21. Qxf3 {[%clk 0:00:36]}  Nd5 {[%clk 0:01:42]} 22. Rxc8 {[%clk 0:00:31]}  Rxc8 {[%clk 0:01:40]} 23. Nxf7 {[%clk 0:00:21]}  Qe6 {[%clk 0:01:27]} 24. Ng5 {[%clk 0:00:21]}  Qd7 {[%clk 0:01:24]} 25. Qf7+ {[%clk 0:00:16]}  Kh8 {[%clk 0:01:24]} 26. Ne6 {[%clk 0:00:16]}  Bf6 {[%clk 0:01:14]} 27. Bh6 {[%clk 0:00:13]}  Rg8 {[%clk 0:01:12]} 28. Nf8 {[%clk 0:00:12]}  Bg7 {[%clk 0:00:56]} 29. Bxg7+ {[%clk 0:00:12]}  Rxg7 {[%clk 0:00:55]} 30. Qxg7+ {[%clk 0:00:13]}  Kxg7 {[%clk 0:00:55]} 31. Nxd7 {[%clk 0:00:14]}  Nf4 {[%clk 0:00:55]} 32. Re1 {[%clk 0:00:12]}  Kf7 {[%clk 0:00:54]} 33. Ne5+ {[%clk 0:00:12]}  Kg7 {[%clk 0:00:54]} 34. Nf3 {[%clk 0:00:11]}  Nd5 {[%clk 0:00:53]} 35. Re5 {[%clk 0:00:10]}  Nb6 {[%clk 0:00:52]} 36. Rxe7+ {[%clk 0:00:10]}  Kf6 {[%clk 0:00:53]} 37. Ra7 {[%clk 0:00:10]}  Nc4 {[%clk 0:00:53]} 38. Rxa6+ {[%clk 0:00:11]}  Kf5 {[%clk 0:00:53]} 39. b3 {[%clk 0:00:10]}  Nb2 {[%clk 0:00:51]} 40. Ra5 {[%clk 0:00:09]}  Ke4 {[%clk 0:00:50]} 41. Rxb5 {[%clk 0:00:10]}  Kd3 {[%clk 0:00:49]} 42. d5 {[%clk 0:00:10]}  g5 {[%clk 0:00:45]} 43. d6 {[%clk 0:00:09]}  g4 {[%clk 0:00:45]} 44. d7 {[%clk 0:00:09]}  gxf3 {[%clk 0:00:46]} 45. d8=Q+ {[%clk 0:00:10]}  Kc2 {[%clk 0:00:46]} 46. Rc5+ {[%clk 0:00:09]}  Kb1 {[%clk 0:00:46]} 47. b4 {[%clk 0:00:07]}  fxg2 {[%clk 0:00:43]} 48. Qd4 {[%clk 0:00:06]}  h5 {[%clk 0:00:41]} 49. Qe4+ {[%clk 0:00:07]}  Ka2 {[%clk 0:00:40]} 50. Rc2 {[%clk 0:00:07]}  h4 {[%clk 0:00:39]} 51. Rxb2+ {[%clk 0:00:06]}  Kxb2 {[%clk 0:00:38]} 52. a4 {[%clk 0:00:07]}  Kb3 {[%clk 0:00:38]} 53. b5 {[%clk 0:00:07]}  Kc3 {[%clk 0:00:38]} 54. a5 {[%clk 0:00:08]}  Kd2 {[%clk 0:00:38]} 55. b6 {[%clk 0:00:09]}  Kc1 {[%clk 0:00:39]} 56. a6 {[%clk 0:00:10]}  Kb2 {[%clk 0:00:39]} 57. b7 {[%clk 0:00:11]}  Kc3 {[%clk 0:00:40]} 58. a7 {[%clk 0:00:12]}  Kd2 {[%clk 0:00:41]} 59. f4 {[%clk 0:00:12]}  Kc3 {[%clk 0:00:42]} 60. Kxg2 {[%clk 0:00:13]}  Kd2 {[%clk 0:00:42]} 61. Kh3 {[%clk 0:00:14]}  Kc3 {[%clk 0:00:42]} 62. Kg4 {[%clk 0:00:15]}  Kd2 {[%clk 0:00:42]} 63. Kf5 {[%clk 0:00:16]}  Kc3 {[%clk 0:00:43]} 64. Ke5 {[%clk 0:00:16]}  Kd2 {[%clk 0:00:44]} 65. Kd4 {[%clk 0:00:17]}  Kc1 {[%clk 0:00:43]} 66. Qe2 {[%clk 0:00:17]}  Kb1 {[%clk 0:00:43]} 67. Kc3 {[%clk 0:00:18]}  Ka1 {[%clk 0:00:44]} 68. Kb3 {[%clk 0:00:17]}  h3 {[%clk 0:00:42]} 69. f5 {[%clk 0:00:18]}  Kb1 {[%clk 0:00:41]} 70. f6 {[%clk 0:00:19]} 1-0


[Site "https://www.chess.com"]

[Event "Titled Tuesday Blitz February 01 B 2022"]
[White "Dourerassou, Jonathan"]
[Black "Ezat, Mohamed"]
[WhiteFideId "628050"]
[BlackFideId "10600906"]
[WhiteElo "2513"]
[BlackElo "2386"]
[Result "1-0"]
[Round "11"]
[TimeControl "180+1"]
[Date "2022.02.01"]
[WhiteClock "0:01:43"]
[BlackClock "0:00:02"]

1. e4 {[%clk 0:03:00]}  c6 {[%clk 0:02:58]} 2. Nc3 {[%clk 0:03:00]}  d5 {[%clk 0:02:58]} 3. Nf3 {[%clk 0:03:00]}  Bg4 {[%clk 0:02:57]} 4. h3 {[%clk 0:03:00]}  Bh5 {[%clk 0:02:57]} 5. d4 {[%clk 0:02:56]}  e6 {[%clk 0:02:57]} 6. Be2 {[%clk 0:02:56]}  Bb4 {[%clk 0:02:56]} 7. exd5 {[%clk 0:02:54]}  cxd5 {[%clk 0:02:55]} 8. O-O {[%clk 0:02:54]}  Nc6 {[%clk 0:02:55]} 9. Bf4 {[%clk 0:02:52]}  Nf6 {[%clk 0:02:55]} 10. Ne5 {[%clk 0:02:46]}  Bxe2 {[%clk 0:02:54]} 11. Nxe2 {[%clk 0:02:46]}  Nxe5 {[%clk 0:02:53]} 12. dxe5 {[%clk 0:02:44]}  Nd7 {[%clk 0:02:49]} 13. c3 {[%clk 0:02:38]}  Bc5 {[%clk 0:02:49]} 14. Qd3 {[%clk 0:02:37]}  O-O {[%clk 0:02:48]} 15. Qg3 {[%clk 0:02:36]}  Kh8 {[%clk 0:02:46]} 16. Rad1 {[%clk 0:02:33]}  Qe7 {[%clk 0:02:43]} 17. Bg5 {[%clk 0:02:32]}  f6 {[%clk 0:02:40]} 18. exf6 {[%clk 0:02:31]}  gxf6 {[%clk 0:02:40]} 19. Be3 {[%clk 0:02:29]}  Rg8 {[%clk 0:02:38]} 20. Qf4 {[%clk 0:02:28]}  Rg6 {[%clk 0:02:29]} 21. Bxc5 {[%clk 0:02:28]}  Nxc5 {[%clk 0:02:28]} 22. Ng3 {[%clk 0:02:28]}  Rag8 {[%clk 0:02:27]} 23. Kh1 {[%clk 0:02:23]}  e5 {[%clk 0:02:07]} 24. Qf3 {[%clk 0:02:18]}  e4 {[%clk 0:01:47]} 25. Qe3 {[%clk 0:02:18]}  Qd6 {[%clk 0:01:22]} 26. Nf5 {[%clk 0:02:10]}  Qc7 {[%clk 0:01:06]} 27. Rxd5 {[%clk 0:02:07]}  Nd3 {[%clk 0:00:41]} 28. g3 {[%clk 0:01:58]}  Nxb2 {[%clk 0:00:36]} 29. Qxe4 {[%clk 0:01:56]}  Nc4 {[%clk 0:00:11]} 30. Ne7 {[%clk 0:01:55]}  Rxg3 {[%clk 0:00:05]} 31. fxg3 {[%clk 0:01:50]}  Rxg3 {[%clk 0:00:05]} 32. Qh4 {[%clk 0:01:44]}  Rg6 {[%clk 0:00:02]} 33. Nxg6+ {[%clk 0:01:43]} 1-0


[Site "https://www.chess.com"]

[Event "Titled Tuesday Blitz February 01 B 2022"]
[White "Gaehwiler, Gabriel"]
[Black "Ronka, Erik"]
[WhiteFideId "1314530"]
[BlackFideId "505080"]
[WhiteElo "2383"]
[BlackElo "2264"]
[Result "1-0"]
[Round "11"]
[TimeControl "180+1"]
[Date "2022.02.01"]
[WhiteClock "0:01:02"]
[BlackClock "0:00:01"]

1. Nf3 {[%clk 0:03:00]}  Nf6 {[%clk 0:02:59]} 2. g3 {[%clk 0:03:01]}  g6 {[%clk 0:02:58]} 3. Bg2 {[%clk 0:03:02]}  Bg7 {[%clk 0:02:59]} 4. O-O {[%clk 0:03:03]}  O-O {[%clk 0:03:00]} 5. Re1 {[%clk 0:03:04]}  d6 {[%clk 0:02:52]} 6. d3 {[%clk 0:03:05]}  c5 {[%clk 0:02:45]} 7. Nbd2 {[%clk 0:03:05]}  Nc6 {[%clk 0:02:46]} 8. e3 {[%clk 0:03:06]}  Rb8 {[%clk 0:02:45]} 9. e4 {[%clk 0:03:07]}  e5 {[%clk 0:02:42]} 10. a3 {[%clk 0:03:08]}  b5 {[%clk 0:02:41]} 11. h3 {[%clk 0:03:09]}  a5 {[%clk 0:02:41]} 12. Nf1 {[%clk 0:03:09]}  b4 {[%clk 0:02:31]} 13. Ne3 {[%clk 0:03:10]}  h6 {[%clk 0:02:15]} 14. Bd2 {[%clk 0:03:10]}  Be6 {[%clk 0:02:14]} 15. Qc1 {[%clk 0:03:10]}  Kh7 {[%clk 0:02:14]} 16. b3 {[%clk 0:03:10]}  Nd4 {[%clk 0:02:09]} 17. Kh2 {[%clk 0:03:09]}  Qd7 {[%clk 0:01:47]} 18. Ng1 {[%clk 0:03:08]}  a4 {[%clk 0:01:43]} 19. axb4 {[%clk 0:03:02]}  axb3 {[%clk 0:01:42]} 20. c3 {[%clk 0:03:02]}  Nc6 {[%clk 0:01:33]} 21. Qb2 {[%clk 0:03:00]}  cxb4 {[%clk 0:01:29]} 22. c4 {[%clk 0:03:01]}  Nd4 {[%clk 0:01:22]} 23. Ne2 {[%clk 0:03:01]}  Nc6 {[%clk 0:00:43]} 24. Qxb3 {[%clk 0:03:01]}  Qc7 {[%clk 0:00:41]} 25. Reb1 {[%clk 0:03:01]}  Nd7 {[%clk 0:00:42]} 26. Nc1 {[%clk 0:02:58]}  Nc5 {[%clk 0:00:42]} 27. Qd1 {[%clk 0:02:57]}  f5 {[%clk 0:00:37]} 28. exf5 {[%clk 0:02:53]}  gxf5 {[%clk 0:00:38]} 29. Nd5 {[%clk 0:02:50]}  Bxd5 {[%clk 0:00:35]} 30. Bxd5 {[%clk 0:02:51]}  e4 {[%clk 0:00:34]} 31. Ra2 {[%clk 0:02:42]}  Nd4 {[%clk 0:00:30]} 32. Be3 {[%clk 0:02:42]}  Nf3+ {[%clk 0:00:29]} 33. Kg2 {[%clk 0:02:41]}  b3 {[%clk 0:00:29]} 34. Nxb3 {[%clk 0:02:38]}  Nxb3 {[%clk 0:00:25]} 35. Rxb3 {[%clk 0:02:38]}  Rxb3 {[%clk 0:00:23]} 36. Qxb3 {[%clk 0:02:39]}  Qe7 {[%clk 0:00:12]} 37. Ra7 {[%clk 0:02:36]}  Qe5 {[%clk 0:00:11]} 38. Bf4 {[%clk 0:02:30]}  Qd4 {[%clk 0:00:11]} 39. Be3 {[%clk 0:02:30]}  Qe5 {[%clk 0:00:11]} 40. Qd1 {[%clk 0:02:24]}  f4 {[%clk 0:00:09]} 41. gxf4 {[%clk 0:02:23]}  Rxf4 {[%clk 0:00:09]} 42. Bxe4+ {[%clk 0:02:18]}  Rxe4 {[%clk 0:00:08]} 43. dxe4 {[%clk 0:02:19]}  Nh4+ {[%clk 0:00:08]} 44. Kf1 {[%clk 0:02:17]}  Qxe4 {[%clk 0:00:08]} 45. Qg4 {[%clk 0:01:23]}  Qb1+ {[%clk 0:00:08]} 46. Ke2 {[%clk 0:01:23]}  Qc2+ {[%clk 0:00:09]} 47. Bd2 {[%clk 0:01:24]}  Ng6 {[%clk 0:00:08]} 48. h4 {[%clk 0:01:17]}  h5 {[%clk 0:00:02]} 49. Qxh5+ {[%clk 0:01:15]}  Kg8 {[%clk 0:00:03]} 50. Qd5+ {[%clk 0:01:15]}  Kh7 {[%clk 0:00:03]} 51. Qd3 {[%clk 0:01:10]}  Qb2 {[%clk 0:00:03]} 52. h5 {[%clk 0:01:08]}  Qe5+ {[%clk 0:00:04]} 53. Kd1 {[%clk 0:01:05]}  Qxh5+ {[%clk 0:00:04]} 54. Kc2 {[%clk 0:01:05]}  Qe5 {[%clk 0:00:04]} 55. Bc3 {[%clk 0:01:03]}  Qc5 {[%clk 0:00:01]} 56. Rxg7+ {[%clk 0:01:02]} 1-0


[Site "https://www.chess.com"]

[Event "Titled Tuesday Blitz February 01 B 2022"]
[White "Isajevsky, Anton"]
[Black "Zhigalko, Sergei"]
[WhiteFideId "4142500"]
[BlackFideId "13502956"]
[WhiteElo "2510"]
[BlackElo "2662"]
[Result "0-1"]
[Round "11"]
[TimeControl "180+1"]
[Date "2022.02.01"]
[WhiteClock "0:00:01"]
[BlackClock "0:00:14"]

1. c4 {[%clk 0:03:00]}  e5 {[%clk 0:02:59]} 2. g3 {[%clk 0:03:00]}  Nf6 {[%clk 0:02:59]} 3. Bg2 {[%clk 0:03:00]}  c6 {[%clk 0:03:00]} 4. d4 {[%clk 0:02:58]}  exd4 {[%clk 0:03:01]} 5. Qxd4 {[%clk 0:02:57]}  Na6 {[%clk 0:03:01]} 6. Nf3 {[%clk 0:02:52]}  Bc5 {[%clk 0:03:02]} 7. Qd3 {[%clk 0:02:46]}  d5 {[%clk 0:02:54]} 8. a3 {[%clk 0:02:38]}  O-O {[%clk 0:02:31]} 9. O-O {[%clk 0:02:13]}  Re8 {[%clk 0:02:13]} 10. cxd5 {[%clk 0:01:56]}  Qxd5 {[%clk 0:02:10]} 11. Qxd5 {[%clk 0:01:41]}  Nxd5 {[%clk 0:02:11]} 12. Re1 {[%clk 0:01:39]}  h6 {[%clk 0:01:37]} 13. Bd2 {[%clk 0:01:31]}  Nac7 {[%clk 0:01:20]} 14. e4 {[%clk 0:01:21]}  Nf6 {[%clk 0:01:20]} 15. Nc3 {[%clk 0:01:20]}  Bg4 {[%clk 0:01:10]} 16. h3 {[%clk 0:01:13]}  Bxf3 {[%clk 0:01:09]} 17. Bxf3 {[%clk 0:01:13]}  Ne6 {[%clk 0:01:10]} 18. Rad1 {[%clk 0:01:03]}  Rad8 {[%clk 0:01:03]} 19. Kg2 {[%clk 0:00:59]}  Bd4 {[%clk 0:00:59]} 20. Be3 {[%clk 0:00:36]}  Bxe3 {[%clk 0:00:52]} 21. Rxe3 {[%clk 0:00:37]}  Rxd1 {[%clk 0:00:51]} 22. Bxd1 {[%clk 0:00:37]}  Rd8 {[%clk 0:00:50]} 23. Kf1 {[%clk 0:00:33]}  b5 {[%clk 0:00:37]} 24. Ke1 {[%clk 0:00:11]}  Nc5 {[%clk 0:00:32]} 25. Bc2 {[%clk 0:00:10]}  a5 {[%clk 0:00:31]} 26. e5 {[%clk 0:00:08]}  Nd5 {[%clk 0:00:31]} 27. Nxd5 {[%clk 0:00:08]}  Rxd5 {[%clk 0:00:32]} 28. f4 {[%clk 0:00:09]}  Kf8 {[%clk 0:00:24]} 29. Ke2 {[%clk 0:00:08]}  Ke7 {[%clk 0:00:23]} 30. h4 {[%clk 0:00:06]}  g6 {[%clk 0:00:20]} 31. h5 {[%clk 0:00:05]}  gxh5 {[%clk 0:00:20]} 32. Kf3 {[%clk 0:00:02]}  Ne6 {[%clk 0:00:20]} 33. Be4 {[%clk 0:00:01]}  Rd1 {[%clk 0:00:14]} 0-1


[Site "https://www.chess.com"]